fUST/lending_fUST_20251230
["ID","MTS","AMOUNT","RATE_DAILY","PERIOD"]
[400085978,1767078640140,-172.25110684,0.00024972,2]
[400085980,1767078640149,-378.56143721,0.00025001,65]
[400085981,1767078640158,-378.56143721,0.0002507,69]
[400085983,1767078640167,-378.56143721,0.00025139,72]
[400085985,1767078640177,-833.33,0.00025205,2]
[400085988,1767078640188,-378.56143721,0.00025209,76]
[400085989,1767078640197,-312.0,0.00025273,2]
[400085991,1767078640207,-378.56143721,0.00025278,80]
[400085993,1767078640216,-378.56143721,0.00025347,83]
[400085995,1767078640225,-175.35360236,0.00025404,11]
[400085997,1767078640234,-378.56143721,0.00025416,87]
[400085999,1767078640243,-833.33,0.00025479,2]
[400086000,1767078640252,-378.56143721,0.00025485,91]
[400086001,1767078640260,-378.56143721,0.00025555,95]
[400086002,1767078640270,-378.56143721,0.00025624,98]
[400086004,1767078640279,-378.56143721,0.00025693,102]
[400086006,1767078640381,-302.6,0.000257,14]
[400086007,1767078640393,-833.33,0.00025753,2]
[400086008,1767078640404,-378.56143721,0.00025762,106]
[400086009,1767078640414,-151.46,0.000258,2]
[400086010,1767078640423,-189.28071853,0.00025959,110]
[400086011,1767078640432,-18621.5204605,0.0002598,2]
[400086012,1767078640442,-7763.7426849,0.0002598,2]
[400086013,1767078640451,-96037.67640377,0.0002599,2]
[400086014,1767078640460,-833.33,0.00026027,2]
[400086015,1767078640469,-833.33,0.00026301,2]
[400086016,1767078640479,-191.79576387,0.00026513,2]
[400086017,1767078640488,-833.33,0.00026575,2]
[400086018,1767078640497,-1793.06,0.000266,2]
[400086019,1767078640506,-162.24,0.000268,7]
[400086020,1767078640515,-833.33,0.00026849,2]
[400086021,1767078640525,-833.33,0.00027123,2]
[400086022,1767078640534,-151.0,0.0002718,2]
[400086023,1767078640543,-339.0,0.00027273,2]
[400086024,1767078640552,-833.33,0.00027397,2]
[400086025,1767078640562,-833.33,0.00027671,2]
[400086026,1767078640571,-175.35360236,0.00027893,15]
[400086027,1767078640581,-833.33,0.00027945,2]
[400086028,1767078640591,-833.41,0.00028219,2]
[400086029,1767078640600,-151.0,0.00028682,3]
[400086030,1767078640609,-1793.06,0.000288,2]
[400086031,1767078640618,-1159.25,0.000288,2]
[400086032,1767078640627,-1159.25,0.000288,2]
[400086033,1767078640636,-1159.25,0.000289,2]
[400086034,1767078640645,-1159.25,0.000289,2]
[400086035,1767078640653,-1159.25,0.00029,2]
[400086036,1767078640662,-1159.25,0.000291,2]
[400086037,1767078640672,-1159.25,0.000291,2]
[400086038,1767078640682,-302.6,0.000292,14]
[400086039,1767078640691,-1159.25,0.000292,2]
[400086040,1767078640700,-1159.25,0.000292,2]
[400086041,1767078640709,-366.0,0.00029273,2]
[400086042,1767078640718,-1159.25,0.000293,2]
[400086043,1767078640727,-1159.25,0.000294,2]
[400086044,1767078640736,-1159.25,0.000294,2]
[400086045,1767078640745,-1159.25,0.000295,2]
[400086046,1767078640754,-1159.25,0.000295,2]
[400086047,1767078640763,-9310.76023026,0.0002959,2]
[400086048,1767078640773,-3881.87134245,0.0002959,2]
[400086049,1767078640782,-1159.25,0.000296,2]
[400086050,1767078640791,-1159.25,0.000296,2]
[400086051,1767078640803,-1159.25,0.000297,2]
[400086052,1767078640812,-1159.25,0.000298,2]
[400086053,1767078640821,-1159.25,0.000298,2]
[400086054,1767078640830,-1159.25,0.000299,2]
[400086055,1767078640840,-1159.25,0.000299,2]
[400086056,1767078640849,-200.0,0.0003,120]
[400086057,1767078640859,-1793.06,0.0003,2]
[400086058,1767078640869,-188.0,0.0003,14]
[400086059,1767078640878,-600.0,0.0003009,30]
[400086060,1767078640888,-151.0,0.00030183,4]
[400086061,1767078640898,-175.35360236,0.00030383,18]
[400086062,1767078640907,-188.0,0.00030411,14]
[400086063,1767078640916,-168.0,0.00030637,2]
[400086064,1767078640925,-171.395,0.00030716,27]
[400086065,1767078640935,-182.73074953,0.00030716,27]
[400086066,1767078640944,-985.62,0.00030958,30]
[400086067,1767078640954,-9310.76023026,0.0003099,2]
[400086068,1767078640963,-3881.87134245,0.0003099,2]
[400086069,1767078640973,-201.19436054,0.00031,120]
[400086070,1767078640982,-306.96509337,0.00031,120]
[400086071,1767078640991,-270.35669365,0.00031,120]
[400086072,1767078641001,-180.65011172,0.00031,120]
[400086073,1767078641010,-167.28493125,0.00031,120]
[400086074,1767078641019,-327.76752763,0.00031,120]
[400086075,1767078641029,-213.77040545,0.00031,120]
[400086076,1767078641038,-173.91029314,0.00031,120]
[400086077,1767078641048,-306.10789684,0.00031,120]
[400086078,1767078641057,-197.73888443,0.00031,120]
[400086079,1767078641066,-313.51767611,0.00031,120]
[400086080,1767078641075,-169.02490077,0.00031,120]
[400086081,1767078641085,-367.89990672,0.00031,120]
[400086082,1767078641094,-1129.64528585,0.00031,120]
[400086083,1767078641103,-393.0,0.00031273,2]
[400086084,1767078641113,-1793.06,0.000313,2]
[400086085,1767078641122,-162.23,0.000315,7]
[400086086,1767078641131,-985.62,0.00031506,31]
[400086087,1767078641140,-205.69,0.00031507,20]
[400086088,1767078641149,-188.0,0.00031644,14]
[400086089,1767078641159,-151.0,0.00031685,4]
[400086090,1767078641167,-4817.0,0.00031704,30]
[400086091,1767078641176,-306.96509337,0.000319,120]
[400086092,1767078641186,-270.35669365,0.000319,120]
[400086093,1767078641195,-180.65011172,0.000319,120]
[400086094,1767078641204,-167.28493125,0.000319,120]
[400086095,1767078641214,-327.76752763,0.000319,120]
[400086096,1767078641223,-213.77040545,0.000319,120]
[400086097,1767078641232,-306.10789684,0.000319,120]
[400086098,1767078641241,-197.73888443,0.000319,120]
[400086099,1767078641251,-313.51767611,0.000319,120]
[400086100,1767078641260,-169.02490077,0.000319,120]
[400086101,1767078641269,-367.89990672,0.000319,120]
[400086102,1767078641279,-1129.64528585,0.000319,120]
[400086103,1767078641288,-985.62,0.00032054,32]
[400086104,1767078641297,-168.0,0.0003212,2]
[400086105,1767078641306,-2000.0,0.000324,120]
[400086106,1767078641315,-168.0,0.00032407,2]
[400086107,1767078641323,-985.62,0.00032602,33]
[400086108,1767078641332,-800.0,0.00032708,2]
[400086109,1767078641341,-175.35360236,0.00032873,22]
[400086110,1767078641350,-200.0,0.00032877,24]
[400086111,1767078641359,-1303.9,0.00032877,10]
[400086112,1767078641368,-2962.999999,0.00032877,120]
[400086113,1767078641378,-306.96509337,0.000329,120]
[400086114,1767078641387,-270.35669365,0.000329,120]
[400086115,1767078641396,-327.76752763,0.000329,120]
[400086116,1767078641405,-213.77040545,0.000329,120]
[400086117,1767078641415,-306.10789684,0.000329,120]
[400086118,1767078641426,-197.73888443,0.000329,120]
[400086119,1767078641436,-313.51767611,0.000329,120]
[400086120,1767078641445,-169.02490077,0.000329,120]
[400086121,1767078641454,-367.89990672,0.000329,120]
[400086122,1767078641463,-1129.64528585,0.000329,120]
[400086123,1767078641472,-1041.66666667,0.00033,120]
[400086124,1767078641481,-1020.0,0.00033,7]
[400086125,1767078641490,-5000.0,0.00033013,2]
[400086126,1767078641499,-720.0,0.00033099,30]
[400086127,1767078641508,-800.0,0.00033099,2]
[400086128,1767078641518,-985.62,0.0003315,34]
[400086129,1767078641527,-151.0,0.00033187,5]
[400086130,1767078641536,-225.2411399,0.000332,117]
[400086131,1767078641546,-1241.1395,0.0003322,30]
[400086132,1767078641555,-191.0,0.00033226,30]
[400086133,1767078641564,-800.0,0.00033232,2]
[400086134,1767078641573,-420.0,0.00033273,120]
[400086135,1767078641582,-172.42335795,0.0003342,2]
[400086136,1767078641591,-680.459,0.00033431,2]
[400086137,1767078641600,-1364.0,0.00033431,2]
[400086138,1767078641609,-2156.0,0.00033431,2]
[400086139,1767078641618,-9310.76023026,0.00033688,2]
[400086140,1767078641627,-3881.87134245,0.00033688,2]
[400086141,1767078641636,-985.62,0.00033698,35]
[400086142,1767078641645,-250.0,0.00033699,5]
[400086143,1767078641655,-7976.66,0.000337,10]
[400086144,1767078641664,-18621.5204605,0.00033878,2]
[400086145,1767078641674,-7763.7426849,0.00033878,2]
[400086146,1767078641683,-55864.5613816,0.00033888,2]
[400086147,1767078641692,-23291.2280547,0.00033888,2]
[400086148,1767078641701,-293200.2772509,0.00033898,2]
[400086149,1767078641710,-306.96509337,0.000339,120]
[400086150,1767078641719,-270.35669365,0.000339,120]
[400086151,1767078641729,-327.76752763,0.000339,120]
[400086152,1767078641738,-213.77040545,0.000339,120]
[400086153,1767078641747,-306.10789684,0.000339,120]
[400086154,1767078641756,-197.73888443,0.000339,120]
[400086155,1767078641767,-313.51767611,0.000339,120]
[400086156,1767078641775,-169.02490077,0.000339,120]
[400086157,1767078641785,-367.89990672,0.000339,120]
[400086158,1767078641794,-1129.64528585,0.000339,120]
[400086159,1767078641803,-160.45912896,0.000339,2]
[400086160,1767078641812,-9310.76023026,0.0003397,2]
[400086161,1767078641821,-3881.87134245,0.0003397,2]
[400086162,1767078641830,-300271.33897058,0.00033999,2]
[400086163,1767078641839,-204.93982025,0.00034,2]
[400086164,1767078641848,-186.19554048,0.00034,120]
[400086165,1767078641858,-1016.0,0.00034,7]
[400086166,1767078641867,-1041.66666667,0.00034,10]
[400086167,1767078641876,-2348.24819283,0.00034159,2]
[400086168,1767078641886,-295.663,0.000342,30]
[400086169,1767078641895,-295.66,0.000342,30]
[400086170,1767078641904,-315.247839,0.00034219,30]
[400086171,1767078641913,-985.62,0.00034246,36]
[400086172,1767078641923,-538.16108523,0.00034378,2]
[400086173,1767078641932,-288.0013665,0.0003438,30]
[400086174,1767078641941,-2348.24819284,0.00034414,2]
[400086175,1767078641950,-21201.1084,0.0003444,30]
[400086176,1767078641960,-800.0,0.000345,2]
[400086177,1767078641969,-350.0,0.00034521,5]
[400086178,1767078641979,-5946.6083822,0.00034638,2]
[400086179,1767078641988,-500.0,0.00034649,7]
[400086180,1767078641997,-500.0,0.00034649,7]
[400086181,1767078642006,-431.95893429,0.00034649,7]
[400086182,1767078642016,-1956.24367086,0.00034649,7]
[400086183,1767078642025,-151.0,0.00034649,7]
[400086184,1767078642034,-151.0,0.00034649,7]
[400086185,1767078642043,-151.0,0.00034649,7]
[400086186,1767078642053,-151.0,0.00034649,7]
[400086187,1767078642062,-151.0,0.00034649,7]
[400086188,1767078642071,-151.0,0.00034649,7]
[400086189,1767078642081,-151.0,0.00034649,7]
[400086190,1767078642090,-151.0,0.00034649,7]
[400086191,1767078642100,-151.0,0.00034649,7]
[400086192,1767078642109,-151.0,0.00034649,7]
[400086193,1767078642119,-151.0,0.00034649,7]
[400086194,1767078642128,-151.0,0.00034649,7]
[400086195,1767078642137,-151.0,0.00034649,7]
[400086196,1767078642146,-151.0,0.00034649,7]
[400086197,1767078642155,-151.0,0.00034649,7]
[400086198,1767078642164,-172.0,0.0003465,7]
[400086199,1767078642174,-184.98755332,0.0003465,7]
[400086200,1767078642183,-3563.91816265,0.0003465,7]
[400086201,1767078642192,-376.81581508,0.0003465,7]
[400086202,1767078642201,-166.0,0.0003465,7]
[400086203,1767078642211,-166.0,0.0003465,7]
[400086204,1767078642220,-166.0,0.0003465,7]
[400086205,1767078642229,-166.0,0.0003465,7]
[400086206,1767078642238,-152.0,0.0003465,7]
[400086207,1767078642247,-163.0,0.0003465,7]
[400086208,1767078642256,-152.0,0.0003465,7]
[400086209,1767078642266,-152.0,0.0003465,7]
[400086210,1767078642275,-152.93364206,0.0003465,7]
[400086211,1767078642284,-1099.46818939,0.0003465,7]
[400086212,1767078642293,-707407.4462011,0.0003465,4]
[400086213,1767078642309,-762634.07337685,0.0003465,4]
[400086270,1767079692089,2113.61303597,0.0001,2]
[400086306,1767079832273,-300.0,0.00013272,2]
[400086308,1767079832283,-46.67607074,0.00013273,2]
[400086310,1767079832297,-453.32392926,0.00013273,2]
[400086312,1767079832308,-500.0,0.00013273,2]
[400086314,1767079832320,-636.14960935,0.00013273,2]
[400086315,1767079832330,-500.0,0.00013273,2]
[400086316,1767079832342,-500.0,0.00013273,2]
[400086317,1767079832353,-318.28301363,0.00013273,2]
[400086318,1767079832365,-500.0,0.00013273,2]
[400086319,1767079832376,-500.0,0.00013273,2]
[400086320,1767079832387,-646.15198399,0.00013273,2]
[400086321,1767079832398,-450.26227438,0.00013273,2]
[400086322,1767079832410,-278.08591794,0.00013273,2]
[400086323,1767079832422,-540.69279956,0.00013273,2]
[400086324,1767079832432,-538.69196578,0.00013273,2]
[400086325,1767079832442,-581.24372239,0.00013273,2]
[400086326,1767079832452,-500.0,0.00013273,2]
[400086327,1767079832461,-386.06893365,0.00013273,2]
[400086328,1767079832471,-500.0,0.00013273,2]
[400086329,1767079832481,-236.76731322,0.00013273,2]
[400086330,1767079832491,-638.64633295,0.00013273,2]
[400086331,1767079832502,-500.0,0.00013273,2]
[400086332,1767079832512,-608.0,0.00013273,2]
[400086333,1767079832523,-300.0,0.00013537,2]
[400086334,1767079832535,-300.0,0.00013537,2]
[400086335,1767079832546,-300.0,0.00013537,2]
[400086336,1767079832558,-300.0,0.00013537,2]
[400086337,1767079832567,-300.0,0.00013537,2]
[400086338,1767079832577,-300.0,0.00013537,2]
[400086339,1767079832587,-300.0,0.00013537,2]
[400086340,1767079832597,-300.0,0.00013537,2]
[400086341,1767079832608,-300.0,0.00013537,2]
[400086342,1767079832619,-300.0,0.00013537,2]
[400086343,1767079832630,-300.0,0.00013537,2]
[400086344,1767079832641,-300.0,0.00013537,2]
[400086345,1767079832651,-300.0,0.00013537,2]
[400086346,1767079832661,-300.0,0.00013537,2]
[400086347,1767079832671,-300.0,0.00013537,2]
[400086348,1767079832682,-685.317618,0.00013699,2]
[400086349,1767079832692,-500.0,0.00013699,2]
[400086350,1767079832702,-600.0,0.00013807,2]
[400086351,1767079832712,-384.2582541,0.00013821,2]
[400086352,1767079832722,-210.87040005,0.00013821,2]
[400086353,1767079832733,-154.18409107,0.00013821,2]
[400086354,1767079832742,-420.0,0.00014551,2]
[400086355,1767079832752,-720.0,0.00015187,2]
[400086356,1767079832762,-177.0,0.00015272,2]
[400086357,1767079832772,-422.0,0.00015953,2]
[400086358,1767079832783,-864.0,0.00016706,2]
[400086359,1767079832792,-204.0,0.00017272,2]
[400086360,1767079832803,-270.58008654,0.00017537,2]
[400086361,1767079832813,-1000.0,0.00018377,2]
[400086362,1767079832823,-231.0,0.00019272,2]
[400086363,1767079832834,-175.0,0.000193,2]
[400086364,1767079832844,-10517.14622383,0.0002,2]
[400086365,1767079832854,-213.38575176,0.00020087,2]
[400086366,1767079832879,-332.93679327,0.00020087,2]
[400086367,1767079832892,-67.8342061,0.00020087,2]
[400086368,1767079832903,-685.317618,0.00020187,2]
[400086369,1767079832912,-468.31107357,0.00020212,2]
[400086370,1767079832921,-500.0,0.00020212,2]
[400086371,1767079832932,-308.66327117,0.00020212,2]
[400086397,1767079838324,-191.33672883,0.00020212,2]
[400086398,1767079838334,-500.0,0.00020212,2]
[400086399,1767079838344,-525.0,0.00020212,2]
[400086400,1767079838353,-315.1196634,0.00020214,2]
[400086401,1767079838382,-684.8803366,0.00020214,2]
[400086402,1767079838392,-244.0,0.00020214,2]
[400086403,1767079838401,-277.96139684,0.00020999,2]
[400086404,1767079838412,-500.0,0.00020999,2]
[400086405,1767079838421,-500.0,0.00020999,2]
[400086406,1767079838431,-500.0,0.00020999,2]
[400086407,1767079838440,-553.79738014,0.00020999,2]
[400086408,1767079838450,-500.0,0.00020999,2]
[400086409,1767079838459,-500.0,0.00020999,2]
[400086410,1767079838468,-500.0,0.00020999,2]
[400086411,1767079838477,-355.96224288,0.00020999,2]
[400086412,1767079838487,-500.0,0.00020999,2]
[400086413,1767079838497,-500.0,0.00020999,2]
[400086414,1767079838507,-286.8687954,0.00020999,2]
[400086415,1767079838519,-213.1312046,0.00020999,2]
[400086416,1767079838528,-500.0,0.00020999,2]
[400086417,1767079838537,-449.999999,0.00021,2]
[400086418,1767079838546,-10713.66452507,0.00021,2]
[400086419,1767079838557,-7530.35789705,0.00021,2]
[400086420,1767079838569,-30030.19718622,0.00021,2]
[400086421,1767079838578,-258.0,0.00021272,2]
[400086422,1767079838588,-1041.66666667,0.00021277,2]
[400086423,1767079838597,-160.0,0.00021479,4]
[400086424,1767079838606,-10029.42291187,0.000215,2]
[400086425,1767079838615,-524.01,0.00021561,10]
[400086426,1767079838625,-999.25,0.00021561,10]
[400086427,1767079838634,-8041.4511597,0.00021571,2]
[400086428,1767079838643,-1000.0,0.00022236,10]
[400086429,1767079838653,-492.0,0.00022236,10]
[400086430,1767079838663,-614.15675106,0.00022553,2]
[400086431,1767079838672,-2486.641288,0.00023044,2]
[400086432,1767079838682,-285.0,0.00023272,2]
[400086433,1767079838691,-460.77,0.0002386,2]
[400086434,1767079838700,-2423.32077286,0.0002387,2]
[400086435,1767079838710,-331596.20781339,0.00024142,2]
[400086436,1767079838719,-160.51,0.00024179,2]
[400086437,1767079838729,-151.47,0.000242,2]
[400086438,1767079838738,-181.56,0.000242,14]
[400086439,1767079838748,-737.00470674,0.00024359,2]
[400086440,1767079838758,-1000.0,0.00024459,10]
[400086441,1767079838767,-791.0,0.00024459,10]
[400086442,1767079838776,-172.76786017,0.00024587,2]
[400086443,1767079838785,-24395.00107394,0.0002465,2]
[400086444,1767079838795,-10390.32906121,0.00025,2]
[400086445,1767079838804,-224922.2462527,0.00025,15]
[400086446,1767079838814,-1084.27758702,0.00025,2]
[400086447,1767079838823,-11293.20269687,0.00025,2]
[400086448,1767079838832,-2671.67802026,0.00025,2]
[400086449,1767079838841,-10364.0,0.00025,2]
[400086450,1767079838850,-500.0,0.00025,2]
[400086451,1767079838859,-1123.0,0.00025,5]
[400086452,1767079838869,-1075.84,0.00025,2]
[400086453,1767079838878,-579.46320172,0.000252,5]
[400086454,1767079838887,-312.0,0.00025272,2]
[400086455,1767079838897,-900.0,0.00025469,3]
[400086456,1767079838906,-1000.0,0.000255,2]
[400086457,1767079838915,-1762.4652,0.00025735,2]
[400086458,1767079838924,-39742.13262439,0.00026,10]
[400086459,1767079838934,-529.2410511,0.00026,2]
[400086460,1767079838943,-19900.0,0.00026,2]
[400086461,1767079838952,-161.0,0.00026,5]
[400086462,1767079838962,-194.445198,0.0002616,2]
[400086463,1767079838975,-685.317618,0.00026676,2]
[400086464,1767079838984,-181.56,0.000269,14]
[400086465,1767079838994,-1000.0,0.00026905,30]
[400086466,1767079839003,-1000.0,0.00026905,30]
[400086467,1767079839013,-737.00470673,0.00026994,2]
[400086468,1767079839023,-267.25875176,0.00027048,2]
[400086469,1767079839032,-339.0,0.00027272,2]
[400086470,1767079839041,-12672.28880148,0.0002739,2]
[400086471,1767079839051,-568.73029361,0.0002739,7]
[400086472,1767079839060,-1075.84,0.000274,2]
[400086473,1767079839069,-45904.70290236,0.000275,2]
[400086474,1767079839079,-1000.0,0.00027777,5]
[400086475,1767079839088,-582.28070137,0.0002799,2]
[400086476,1767079839098,-15307.62179137,0.00028,2]
[400086477,1767079839107,-595.83744368,0.00028,2]
[400086478,1767079839116,-519.64420806,0.00028,2]
[400086479,1767079839125,-1762.4652,0.00028361,2]
[400086480,1767079839135,-229718.30083605,0.000285,7]
[400086481,1767079839144,-176.50504191,0.0002866,2]
[400086482,1767079839154,-3256.62662481,0.0002876,2]
[400086483,1767079839167,-19127.78853029,0.0002876,2]
[400086484,1767079839176,-172.33062748,0.000288,7]
[400086485,1767079839185,-672.36,0.000288,2]
[400086486,1767079839195,-672.36,0.000288,2]
[400086487,1767079839206,-672.36,0.000289,2]
[400086488,1767079839216,-672.36,0.000289,2]
[400086489,1767079839226,-2225.14761447,0.0002896,120]
[400086490,1767079839236,-889.49824385,0.00029,2]
[400086491,1767079839246,-28341.24003385,0.00029,20]
[400086492,1767079839256,-2406.38515982,0.00029,10]
[400086493,1767079839265,-672.36,0.00029,2]
[400086494,1767079839275,-672.36,0.000291,2]
[400086495,1767079839284,-672.36,0.000291,2]
[400086496,1767079839293,-181.56,0.000291,14]
[400086497,1767079839303,-672.36,0.000292,2]
[400086498,1767079839312,-672.36,0.000292,2]
[400086499,1767079839322,-6837.12,0.000292,3]
[400086500,1767079839331,-366.0,0.00029272,2]
[400086501,1767079839341,-672.36,0.000293,2]
[400086502,1767079839350,-176.50504182,0.00029314,2]
[400086503,1767079839359,-672.36,0.000294,2]
[400086504,1767079839371,-672.36,0.000294,2]
[400086505,1767079839382,-384.21694444,0.000295,120]
[400086506,1767079839392,-672.36,0.000295,2]
[400086507,1767079839402,-672.36,0.000295,2]
[400086508,1767079839412,-1075.84,0.000295,2]
[400086509,1767079839421,-1000.0,0.00029596,30]
[400086510,1767079839430,-1000.0,0.00029596,30]
[400086511,1767079839440,-579.0,0.00029596,30]
[400086512,1767079839449,-672.36,0.000296,2]
[400086513,1767079839458,-672.36,0.000296,2]
[400086514,1767079839467,-737.00470673,0.0002963,2]
[400086515,1767079839477,-672.36,0.000297,2]
[400086516,1767079839486,-672.36,0.000298,2]
[400086517,1767079839495,-672.36,0.000298,2]
[400086518,1767079839504,-672.36,0.000299,2]
[400086519,1767079839514,-672.36,0.000299,2]
[400086520,1767079839525,-176.50504182,0.00029968,2]
[400086521,1767079839534,-158.0,0.0003,10]
[400086522,1767079839544,-412.34289824,0.0003,10]
[400086523,1767079839553,-263.0797124,0.0003,2]
[400086524,1767079839563,-49281.69490284,0.0003,2]
[400086525,1767079839572,-428.14042977,0.0003,120]
[400086526,1767079839581,-843.31673468,0.0003,30]
[400086527,1767079839592,-385.78785205,0.0003,120]
[400086528,1767079839601,-1500.0,0.0003,45]
[400086529,1767079839610,-509.61616711,0.0003,30]
[400086530,1767079839619,-265.86918879,0.0003,120]
[400086531,1767079839628,-13109.52834209,0.0003,120]
[400086532,1767079839638,-706.67383558,0.0003,120]
[400086533,1767079839647,-672.36,0.0003,2]
[400086534,1767079839656,-1002.0,0.000301,30]
[400086535,1767079839665,-672.36,0.000301,2]
[400086536,1767079839675,-672.36,0.000301,2]
[400086537,1767079839685,-672.36,0.000302,2]
[400086538,1767079839694,-672.36,0.000302,2]
[400086539,1767079839703,-672.36,0.000303,2]
[400086540,1767079839712,-672.36,0.000304,2]
[400086541,1767079839721,-672.36,0.000304,2]
[400086542,1767079839730,-672.36,0.000305,2]
[400086543,1767079839739,-672.36,0.000305,2]
[400086544,1767079839748,-672.36,0.000306,2]
[400086545,1767079839757,-672.36,0.000306,2]
[400086546,1767079839766,-176.50504182,0.00030621,2]
[400086547,1767079839775,-672.36,0.000307,2]
[400086548,1767079839784,-188.903,0.00030727,27]
[400086549,1767079839793,-672.36,0.000308,2]
[400086550,1767079839802,-672.36,0.000308,2]
[400086551,1767079839811,-672.36,0.000309,2]
[400086552,1767079839821,-672.36,0.000309,2]
[400086553,1767079839830,-872.08,0.00030958,30]
[400086554,1767079839840,-305.77525825,0.0003099,2]
[400086555,1767079839850,-275.32761018,0.00031,120]
[400086556,1767079839859,-242.5574686,0.00031,120]
[400086557,1767079839869,-332.32854454,0.00031,120]
[400086558,1767079839878,-173.03217021,0.00031,120]
[400086559,1767079839888,-188.46987422,0.00031,120]
[400086560,1767079839897,-310.34196672,0.00031,120]
[400086561,1767079839906,-281.19623451,0.00031,120]
[400086562,1767079839916,-246.70934921,0.00031,120]
[400086563,1767079839925,-818.52986287,0.00031,120]
[400086564,1767079839935,-184.0493364,0.00031,120]
[400086565,1767079839944,-28633.4661558,0.00031,120]
[400086566,1767079839953,-1356.72940716,0.00031,120]
[400086567,1767079839962,-2554.1920992,0.00031,5]
[400086568,1767079839971,-672.36,0.00031,2]
[400086569,1767079839981,-672.36,0.000311,2]
[400086570,1767079839990,-672.36,0.000311,2]
[400086571,1767079840000,-13931.54620908,0.0003112,2]
[400086572,1767079840009,-672.36,0.000312,2]
[400086573,1767079840019,-672.36,0.000312,2]
[400086574,1767079840028,-393.0,0.00031272,2]
[400086575,1767079840038,-176.50504182,0.00031275,2]
[400086576,1767079840047,-181.56,0.000313,14]
[400086577,1767079840057,-672.36,0.000313,2]
[400086578,1767079840066,-168.0,0.00031313,2]
[400086579,1767079840076,-672.36,0.000314,2]
[400086580,1767079840086,-672.36,0.000314,2]
[400086581,1767079840095,-672.36,0.000315,2]
[400086582,1767079840104,-672.36,0.000315,2]
[400086583,1767079840113,-872.08,0.00031506,31]
[400086584,1767079840123,-481.06575316,0.00031508,2]
[400086585,1767079840133,-672.36,0.000316,2]
[400086586,1767079840142,-672.36,0.000316,2]
[400086587,1767079840152,-151.0,0.00031719,4]
[400086588,1767079840166,-1075.84,0.000318,2]
[400086589,1767079840175,-275.32761018,0.000319,120]
[400086591,1767079840185,-242.5574686,0.000319,120]
[400086593,1767079840194,-332.32854454,0.000319,120]
[400086594,1767079840205,-173.03217021,0.000319,120]
[400086595,1767079840214,-188.46987422,0.000319,120]
[400086596,1767079840224,-310.34196672,0.000319,120]
[400086597,1767079840234,-281.19623451,0.000319,120]
[400086599,1767079840243,-246.70934921,0.000319,120]
[400086600,1767079840252,-818.52986287,0.000319,120]
[400086601,1767079840262,-184.0493364,0.000319,120]
[400086602,1767079840271,-11247.79533795,0.000319,2]
[400086603,1767079840280,-176.50504182,0.00031929,2]
[400086604,1767079840294,-4617.0,0.00031971,30]
[400086605,1767079840304,-157.0,0.00032,120]
[400086607,1767079840314,-200.51904304,0.00032,2]
[400086609,1767079840323,-872.08,0.00032054,32]
[400086610,1767079840332,-500.0,0.0003216,2]
[400086611,1767079840342,-737.00470673,0.00032265,2]
[400086612,1767079840352,-1762.4652,0.00032299,2]
[400086613,1767079840362,-582.28070137,0.00032546,2]
[400086614,1767079840372,-1000.0,0.00032556,30]